lending/lending_fUSD_20260101
["ID","MTS","AMOUNT","RATE_DAILY","PERIOD"]
[400292376,1767288644161,-351.0,0.00016982,2]
[400292377,1767288644171,-1334.1764247,0.00016985,2]
[400292378,1767288644181,-27114.1231481,0.00016985,2]
[400292379,1767288644193,-100266.9,0.00016986,2]
[400292380,1767288644203,-351.0,0.00016989,2]
[400292381,1767288644213,-1313.0,0.00017,2]
[400292382,1767288644223,-209483.15451281,0.00017,2]
[400292383,1767288644235,-4122.76392,0.00017,2]
[400292384,1767288644687,-617.40697316,0.00017,2]
[400292398,1767288646288,-506.90891425,0.00017,2]
[400292399,1767288646300,-4101.86721699,0.00017,2]
[400292400,1767288646312,-1914.62105499,0.00017,2]
[400292401,1767288646354,-325959.00126853,0.00017,2]
[400292402,1767288646407,-18209.52250519,0.00017,2]
[400292403,1767288646467,-1235.93486426,0.00017,2]
[400292404,1767288646480,-11910.53209238,0.00017,2]
[400292405,1767288646521,-384.79023,0.00017,2]
[400292424,1767288661936,500.0,0.00043123,120]
[400292429,1767288961894,500.0,0.00043124,120]
[400292431,1767289026954,154.7,0.00043124,120]
[400292434,1767289261918,500.0,0.00043123,120]
[400292435,1767289293664,500.0,0.00043123,120]
[400292438,1767289510415,500.0,0.00043123,120]
[400292439,1767289511058,500.0,0.00043123,120]
[400292440,1767289511755,500.0,0.00043123,120]
[400292441,1767289512418,500.0,0.00043123,120]
[400292442,1767289513040,500.0,0.00043123,120]
[400292443,1767289513694,500.0,0.00043123,120]
[400292444,1767289562247,500.0,0.00043123,120]
[400292449,1767289812392,880.88208257,0.00013699,2]
[400292458,1767289832280,-42.87791743,0.00013699,2]
[400292459,1767289832291,-500.0,0.00014389,2]
[400292460,1767289832300,-269.0,0.00014389,2]
[400292461,1767289832310,-200.0,0.00015082,2]
[400292462,1767289832320,-200.0,0.00015168,2]
[400292463,1767289832330,-312.4,0.00015212,2]
[400292464,1767289832340,-166.66,0.0001527,2]
[400292465,1767289832350,-1200.0,0.00015287,2]
[400292466,1767289832360,-150.0,0.00015288,2]
[400292467,1767289832370,-150.0,0.00015288,2]
[400292468,1767289832379,-150.0,0.00015288,2]
[400292469,1767289832389,-150.0,0.00015288,2]
[400292470,1767289832399,-226.02206269,0.00015288,2]
[400292471,1767289832409,-198.84062533,0.00015288,2]
[400292472,1767289832418,-150.0,0.00015288,2]
[400292473,1767289832428,-300.0,0.00015492,2]
[400292474,1767289832437,-1200.0,0.00015493,2]
[400292476,1767289832447,-748.39,0.00015505,2]
[400292478,1767289832456,-166.66,0.00015592,2]
[400292480,1767289832465,-500.0,0.000157,2]
[400292481,1767289832475,-269.01876489,0.000157,2]
[400292482,1767289832484,-3904.69,0.00015701,2]
[400292484,1767289832494,-3616.88,0.00015701,2]
[400292486,1767289832503,-150.0,0.00015799,2]
[400292487,1767289832513,-195.0,0.00015828,2]
[400292490,1767289832523,-250.0,0.00015828,2]
[400292492,1767289832532,-750.55,0.00015854,2]
[400292493,1767289832542,-166.66,0.00015913,2]
[400292495,1767289832551,-219.95631328,0.00015998,2]
[400292498,1767289832561,-500.0,0.00015998,2]
[400292500,1767289832571,-165.64282301,0.00015998,2]
[400292502,1767289832580,-213.75765935,0.00015998,2]
[400292503,1767289832589,-45535.99825517,0.00015999,2]
[400292508,1767289832623,-1795.22834089,0.00015999,2]
[400292510,1767289832635,-705.17575911,0.00015999,2]
[400292513,1767289832651,-596.38,0.00015999,2]
[400292526,1767289838328,-1022.52658748,0.00015999,2]
[400292534,1767289840315,-4493.96629721,0.00015999,2]
[400292535,1767289840471,-10540.5244921,0.00015999,2]
[400292536,1767289840682,-1746.48,0.00015999,2]
[400292548,1767289843966,-176877.90396017,0.00015999,2]
[400292549,1767289844750,-2466.21308121,0.00015999,2]
[400292550,1767289844763,-9122.49793244,0.00015999,2]
[400292551,1767289844805,-4785.79909233,0.00015999,2]
[400292552,1767289844859,-834.84277497,0.00015999,2]
[400292553,1767289844871,-315641.70082692,0.00015999,2]
[400292554,1767289844882,-161.73588616,0.00016031,2]
[400292555,1767289844891,-188.98255571,0.00016082,2]
[400292556,1767289844901,-173.90378437,0.00016082,2]
[400292557,1767289844911,-2524.03332757,0.00016092,2]
[400292558,1767289844921,-390.899,0.00016099,2]
[400292559,1767289844930,-506.78496433,0.00016099,2]
[400292560,1767289844940,-2524.03332754,0.00016182,2]
[400292561,1767289844949,-1099.49,0.00016192,2]
[400292562,1767289844959,-939.78,0.00016192,2]
[400292563,1767289844969,-178.77,0.00016192,2]
[400292564,1767289844983,-166.66,0.00016235,2]
[400292565,1767289844993,-2313.75,0.00016255,2]
[400292566,1767289845003,-2524.03332754,0.00016272,2]
[400292567,1767289845014,-173.90378435,0.00016287,2]
[400292568,1767289845024,-2524.03332754,0.00016361,2]
[400292569,1767289845035,-316.04606484,0.00016438,2]
[400292570,1767289845044,-2524.03332754,0.00016451,2]
[400292571,1767289845054,-188.98255569,0.00016491,2]
[400292572,1767289845064,-173.90378435,0.00016491,2]
[400292573,1767289845074,-748.125,0.00016501,2]
[400292574,1767289845084,-2524.03332754,0.00016541,2]
[400292575,1767289845094,-166.66,0.00016556,2]
[400292576,1767289845104,-2524.03332754,0.00016631,2]
[400292577,1767289845115,-1382.77638736,0.0001666,2]
[400292578,1767289845126,-1364.91486209,0.00016676,2]
[400292579,1767289845136,-173.90378435,0.00016696,2]
[400292580,1767289845146,-2524.03332754,0.0001672,2]
[400292581,1767289845157,-1680.0,0.0001681,2]
[400292582,1767289845167,-2524.03332754,0.0001681,2]
[400292583,1767289845176,-166.99541,0.0001683,2]
[400292584,1767289845186,-166.99541,0.0001683,2]
[400292585,1767289845196,-166.99542,0.0001683,2]
[400292586,1767289845206,-166.99541,0.0001685,2]
[400292587,1767289845216,-166.66,0.00016878,2]
[400292588,1767289845225,-166.99541,0.0001688,2]
[400292589,1767289845236,-1052.0,0.00016899,2]
[400292590,1767289845246,-2524.03332754,0.000169,2]
[400292591,1767289845256,-188.98255569,0.000169,2]
[400292592,1767289845266,-173.90378435,0.000169,2]
[400292593,1767289845276,-166.99541,0.0001691,2]
[400292594,1767289845285,-151.0,0.00016919,2]
[400292595,1767289845295,-151.0,0.00016919,2]
[400292596,1767289845305,-166.99541,0.0001693,2]
[400292597,1767289845315,-500.0,0.00016973,2]
[400292598,1767289845325,-500.0,0.00016973,2]
[400292599,1767289845339,-500.0,0.00016973,2]
[400292600,1767289845350,-187.4494103,0.00016973,2]
[400292601,1767289845359,-500.0,0.00016973,2]
[400292602,1767289845370,-491.82335123,0.00016973,2]
[400292603,1767289845381,-500.0,0.00016973,2]
[400292604,1767289845391,-500.0,0.00016973,2]
[400292605,1767289845400,-500.0,0.00016973,2]
[400292606,1767289845410,-500.0,0.00016973,2]
[400292607,1767289845420,-1171.6058803,0.00016981,2]
[400292608,1767289845432,-375176.60899918,0.00017,2]
[400292609,1767289845442,-58426.99162297,0.00017,2]
[400292610,1767289845455,-870810.49689663,0.00017,2]
[400292611,1767289845467,-691.24287986,0.00017,2]
[400292612,1767289845479,-1292.21190686,0.00017,2]
[400292613,1767289845491,-1573.13458229,0.00017,2]
[400292614,1767289845503,-1650.68809694,0.00017,2]
[400292615,1767289845516,-916.73474021,0.00017,2]
[400292616,1767289845528,-877.07771091,0.00017,2]
[400292617,1767289845541,-656.42984484,0.00017,2]
[400292618,1767289845554,-480.14190281,0.00017,2]
[400292628,1767289846289,-986.89522002,0.00017,2]
[400292641,1767289846505,-5893.178389,0.00017,2]
[400292642,1767289846517,-3511.30381811,0.00017,2]
[400292643,1767289846551,-580.0299999,0.00017,2]
[400292644,1767289846563,-380.99013,0.00017,2]
[400292645,1767289861378,500.0,0.00043123,120]
[400292646,1767289872921,500.0,0.00043123,120]
[400292647,1767289873434,500.0,0.00043123,120]
[400292648,1767289874384,500.0,0.00043123,120]
[400292653,1767290161198,500.0,0.00043123,120]
[400292657,1767290403718,163.6,8.008e-05,2]
[400292658,1767290413597,162.94390855,0.00043118,120]
[400292660,1767290462185,500.0,0.00043118,120]
[400292666,1767290760877,500.0,0.00043118,120]
[400292679,1767291031513,-338.82931,0.0001521,2]
[400292680,1767291031523,-779.93069,0.00015287,2]
[400292864,1767291037494,-371.06931,0.00015287,2]
[400292865,1767291037506,-1200.0,0.00015287,2]
[400292866,1767291037516,-150.0,0.00015288,2]
[400292867,1767291037527,-239.75748021,0.00015288,2]
[400292868,1767291037538,-150.0,0.00015288,2]
[400292869,1767291037548,-150.0,0.00015288,2]
[400292870,1767291037558,-150.0,0.00015288,2]
[400292871,1767291037569,-150.0,0.00015288,2]
[400292872,1767291037579,-19.4206007,0.00015288,2]
[400292873,1767291037592,-131.39350691,0.00015288,2]
[400292874,1767291037602,-150.0,0.00015288,2]
[400292875,1767291037612,-150.0,0.00015288,2]
[400292876,1767291037623,-621.97667532,0.00015338,2]
[400292877,1767291037635,-1492.44157573,0.00015338,2]
[400292878,1767291037650,-1062.25174895,0.00015338,2]
[400292879,1767291037660,-162.33,0.00015379,2]
[400292880,1767291037670,-260.55062385,0.00015445,2]
[400292881,1767291037680,-913.0,0.00015603,2]
[400292882,1767291037690,-1199.0,0.00015603,2]
[400292884,1767291037700,-3930.17,0.00015635,2]
[400292886,1767291037710,-185.78,0.00015845,2]
[400292888,1767291037720,-500.0,0.00015853,2]
[400292890,1767291037730,-254.97513456,0.00015853,2]
[400292892,1767291037739,-150.0,0.00015854,2]
[400292895,1767291037749,-251.61653794,0.00015898,2]
[400292897,1767291037759,-500.0,0.00015898,2]
[400292899,1767291037769,-266.23846983,0.00015898,2]
[400292901,1767291037778,-1110.0,0.00015899,2]
[400292903,1767291037788,-236.1822,0.00015899,2]
[400292905,1767291037798,-1619.35753885,0.00015899,2]
[400292907,1767291037811,-1282.2401957,0.00015899,2]
[400292909,1767291037824,-12456.20612926,0.00015899,2]
[400292912,1767291037841,-5095.73718748,0.00015899,2]
[400292915,1767291039478,-2641.40049828,0.00015899,2]
[400292920,1767291039530,-9080.01859324,0.00015899,2]
[400292930,1767291039639,-79111.40015416,0.00015899,2]
[400292931,1767291039651,-8635.59488096,0.00015899,2]
[400292932,1767291039692,-78921.91925055,0.00015899,2]
[400292933,1767291039704,-409194.13616515,0.00015899,2]
[400292934,1767291039716,-269.64599,0.00015899,2]
[400292935,1767291039728,-573.674504,0.00015899,2]
[400292936,1767291039745,-310.71335497,0.00015899,2]
[400292937,1767291039757,-14587.53601149,0.00015899,2]
[400292938,1767291039802,-12642.22382915,0.00015899,2]
[400292939,1767291039814,-387.68947506,0.00015899,2]
[400292940,1767291039826,-10045.45113752,0.00015899,2]
[400292941,1767291039837,-4314.1106964,0.00015899,2]
[400292942,1767291039912,-899.99975,0.00015899,2]
[400292954,1767291043205,-177.60265719,0.00015898,2]
[400292955,1767291043216,-256.0333509,0.00015899,2]
[400292956,1767291043227,-365.30584809,0.00015899,2]
[400292957,1767291044050,-313.26145363,0.00015899,2]
[400292958,1767291044062,-17700.0,0.00015899,2]
[400292959,1767291044104,-870.0,0.00015899,2]
[400292960,1767291044117,-26293.79546409,0.00015899,2]
[400292961,1767291044129,-3304.01870265,0.00015899,2]
[400292962,1767291044168,-196205.09905489,0.00015899,2]
[400292963,1767291044184,-448.80928647,0.00015899,2]
[400292964,1767291044208,-17.97887838,0.00015899,2]
[400292965,1767291044220,-1387.84169527,0.00015899,2]
[400292972,1767291045540,-34573.06622596,0.00015899,2]
[400292973,1767291045553,-3875.51419,0.00015899,2]
[400292974,1767291045645,-3857.7123853,0.00015899,2]
[400292975,1767291045656,-878.15443804,0.00015899,2]
[400292979,1767291062139,500.0,0.00043118,120]
[400292981,1767291361563,500.0,0.00043118,120]
[400292982,1767291661548,500.0,0.00043112,120]
[400292983,1767291815816,288.86,0.00043113,120]
[400292984,1767291960510,500.0,0.00043113,120]
[400293000,1767292231555,-265.0,0.0001395,2]
[400293002,1767292231565,-166.66,0.0001395,2]
[400293004,1767292231575,-300.0,0.00014097,2]
[400293005,1767292231584,-166.66,0.00014244,2]
[400293006,1767292231595,-153.2452764,0.00014538,2]
[400293007,1767292231608,-13.4147236,0.00014538,2]
[400293008,1767292231617,-166.66,0.00014832,2]
[400293009,1767292231627,-817.51893505,0.00015092,2]
[400293010,1767292231637,-166.66,0.00015125,2]
[400293011,1767292231647,-427.9057553,0.00015148,2]
[400293012,1767292231657,-434.30268977,0.0001517,2]
[400293013,1767292231666,-1834.48767959,0.00015192,2]
[400293014,1767292231676,-817.51893504,0.00015206,2]
[400293015,1767292231686,-300.0,0.00015247,2]
[400293016,1767292231695,-1200.0,0.00015247,2]
[400293017,1767292231705,-2500.0,0.00015248,2]
[400293018,1767292231715,-600.0,0.00015248,2]
[400293019,1767292231724,-1200.0,0.00015259,2]
[400293020,1767292231734,-627.10092635,0.00015274,2]
[400293021,1767292231743,-600.0,0.00015274,2]
[400293022,1767292231753,-579.13788336,0.00015274,2]
[400293023,1767292231763,-150.0,0.00015288,2]
[400293024,1767292231773,-153.33373495,0.00015288,2]
[400293026,1767292231783,-150.0,0.00015288,2]
[400293029,1767292231797,-150.0,0.00015288,2]
[400293030,1767292231806,-150.0,0.00015288,2]
[400293032,1767292231815,-193.43920746,0.00015288,2]
[400293034,1767292231826,-150.0,0.00015288,2]
[400293036,1767292231837,-150.0,0.00015288,2]
[400293038,1767292231846,-150.0,0.00015288,2]
[400293040,1767292231856,-150.0,0.00015288,2]
[400293043,1767292231867,-999.0,0.00015288,3]
[400293045,1767292231877,-172.56401972,0.00015319,2]
[400293047,1767292231889,-817.51893504,0.00015319,2]
[400293049,1767292231900,-177.60265718,0.00015319,2]
[400293051,1767292231910,-361.17363324,0.00015345,2]
[400293054,1767292231920,-195.0,0.00015345,2]
[400293056,1767292231929,-300.0,0.00015345,2]
[400293058,1767292231939,-250.0,0.00015345,2]
[400293060,1767292231948,-300.0,0.0001539,2]
[400293062,1767292231958,-29995.02420272,0.00015391,2]
[400293065,1767292231971,-63528.62802984,0.00015391,2]
[400293067,1767292231982,-889.25305166,0.00015391,2]
[400293159,1767292237630,-348.8999982,0.00015391,2]
[400293160,1767292237643,-8708.5,0.00015391,2]
[400293161,1767292237685,-340.00534089,0.00015391,2]
[400293162,1767292237743,-1586.66,0.00015391,2]
[400293163,1767292237802,-12746.0,0.00015391,2]
[400293164,1767292237855,-6074.21648916,0.00015391,2]
[400293167,1767292237867,-907.14,0.00015391,2]
[400293179,1767292239721,-3870.39857872,0.00015391,2]
[400293180,1767292239777,-2384.78114555,0.00015391,2]
[400293181,1767292240049,-1731.41031661,0.00015391,2]
[400293193,1767292243840,-1016.0235754,0.00015391,2]
[400293194,1767292243852,-999.99936054,0.00015391,2]
[400293197,1767292245561,-542.82391399,0.00015391,2]
[400293201,1767292245669,-134839.98575055,0.00015391,2]
[400293202,1767292245726,-104001.97488092,0.00015391,2]
[400293224,1767292261292,500.0,0.00043115,120]
[400293227,1767292561998,500.0,0.00043115,120]
[400293228,1767292630000,500.0,0.00043115,120]
[400293229,1767292630286,500.0,0.00043115,120]
[400293230,1767292630561,500.0,0.00043115,120]
[400293231,1767292630879,561.99058201,0.00043115,120]
[400293232,1767292860776,500.0,0.00043116,120]
[400293233,1767293089516,1375.0,0.00043116,120]
[400293234,1767293089769,1375.0,0.00043116,120]
[400293235,1767293090001,1375.0,0.00043116,120]
[400293236,1767293090250,1375.0,0.00043116,120]
[400293237,1767293090917,1375.0,0.00043116,120]
[400293238,1767293091550,1375.0,0.00043116,120]
[400293239,1767293091800,1375.0,0.00043116,120]
[400293240,1767293092038,1375.0,0.00043116,120]
[400293241,1767293092372,1375.0,0.00043116,120]
[400293242,1767293092598,1375.0,0.00043116,120]
[400293243,1767293092869,1375.0,0.00043116,120]
[400293244,1767293093124,1375.0,0.00043116,120]
[400293245,1767293093750,1375.0,0.00043116,120]
[400293246,1767293093993,1375.0,0.00043116,120]
[400293247,1767293094243,1375.0,0.00043116,120]
[400293248,1767293094629,1375.0,0.00043116,120]
[400293249,1767293094694,1375.0,0.00043116,120]
[400293250,1767293094935,1375.0,0.00043116,120]
[400293251,1767293095168,1375.0,0.00043116,120]
[400293252,1767293095392,1375.0,0.00043116,120]
[400293253,1767293095645,1375.0,0.00043116,120]
[400293254,1767293095876,1375.0,0.00043116,120]
[400293255,1767293096125,1375.0,0.00043116,120]
[400293256,1767293096349,1375.0,0.00043116,120]
[400293257,1767293162097,500.0,0.00043116,120]
[400293258,1767293286075,339.62402514,0.00043117,120]
[400293264,1767293431901,-877.57,0.00013699,2]
[400293265,1767293431912,-185.78,0.00014026,2]
[400293266,1767293431922,-507.22116541,0.00014172,2]
[400293267,1767293431934,-994.12251902,0.00014172,2]
[400293268,1767293431946,-1738.65631557,0.00014172,2]
[400293269,1767293431955,-2023.0,0.00014299,2]
[400293270,1767293431966,-506.06245251,0.00014373,2]
[400293271,1767293431976,-265.918471,0.00014387,2]
[400293272,1767293431986,-500.0,0.0001446,2]
[400293273,1767293431996,-1200.0,0.00014471,2]
[400293274,1767293432006,-300.0,0.00014484,2]
[400293275,1767293432016,-480.0,0.00014559,2]
[400293276,1767293432026,-1450.81774344,0.0001456,2]
[400293277,1767293432038,-1771.41225656,0.0001456,2]
[400293278,1767293432047,-500.0,0.00014593,2]
[400293279,1767293432058,-500.46,0.00014593,2]
[400293280,1767293432068,-689.67933251,0.00014594,2]
[400293281,1767293432077,-536.36692888,0.0001465,2]
[400293282,1767293432087,-176.13157656,0.0001465,2]
[400293283,1767293432096,-205.50669349,0.0001465,2]
[400293284,1767293432106,-6535.90659502,0.00014651,2]
[400293285,1767293432118,-14761.43004324,0.00014651,2]
[400293286,1767293432129,-627.03415411,0.00014651,2]
[400293287,1767293432141,-2179.00256867,0.00014651,2]
[400293288,1767293432152,-2950.47246119,0.00014651,2]
[400293289,1767293432168,-500.0,0.00014651,2]
[400293292,1767293437828,-511.34359108,0.00014592,2]
[400293293,1767293437838,-120.78790967,0.00014592,2]
[400293294,1767293437849,-390.55568141,0.00014592,2]
[400293296,1767293437859,-1.4176479,0.00014592,2]
[400293297,1767293437871,-509.92594318,0.00014592,2]
[400293298,1767293437880,-155.06338071,0.00014592,2]
[400293299,1767293437913,-356.28021037,0.00014592,2]
[400293300,1767293437922,-511.34359108,0.00014592,2]
[400293301,1767293437931,-466.16777944,0.00014592,2]
[400293302,1767293437943,-45.17581164,0.00014592,2]
[400293303,1767293437952,-511.34359108,0.00014592,2]
[400293304,1767293437962,-511.34359108,0.00014592,2]
[400293305,1767293437971,-386.38315098,0.00014592,2]
[400293363,1767293439928,-124.9604401,0.00014592,2]
[400293364,1767293439938,-511.34359108,0.00014592,2]
[400293365,1767293439947,-511.34359108,0.00014592,2]
[400293366,1767293439957,-511.34359108,0.00014592,2]
[400293367,1767293439967,-511.34359108,0.00014592,2]
[400293368,1767293439976,-511.34359108,0.00014592,2]
[400293369,1767293439986,-511.34359108,0.00014592,2]
[400293370,1767293439995,-511.34359108,0.00014592,2]
[400293371,1767293440005,-511.34359108,0.00014592,2]
[400293372,1767293440015,-511.34359108,0.00014592,2]
[400293373,1767293440024,-511.34359108,0.00014592,2]
[400293374,1767293440034,-500.0,0.00014592,2]
[400293375,1767293440044,-511.34359108,0.00014592,2]
[400293376,1767293440053,-511.34359108,0.00014592,2]
[400293377,1767293440063,-511.34359108,0.00014592,2]
[400293378,1767293440075,-511.34359108,0.00014592,2]
[400293379,1767293440084,-511.34359108,0.00014592,2]
[400293380,1767293440094,-511.34359108,0.00014592,2]
[400293381,1767293440104,-511.34359108,0.00014592,2]
[400293382,1767293440120,-511.34359108,0.00014592,2]
[400293383,1767293440130,-511.34359108,0.00014592,2]
[400293384,1767293440140,-511.34359108,0.00014592,2]
[400293385,1767293440149,-441.00208113,0.00014592,2]
[400293386,1767293440162,-70.34150995,0.00014592,2]
[400293387,1767293440171,-511.34359108,0.00014592,2]
[400293388,1767293440180,-511.34359108,0.00014592,2]
[400293389,1767293440190,-511.34359108,0.00014592,2]
[400293390,1767293440200,-511.34359108,0.00014592,2]
[400293391,1767293440209,-511.34359108,0.00014592,2]
[400293392,1767293440218,-511.34359108,0.00014592,2]
[400293393,1767293440228,-511.34359108,0.00014592,2]
[400293394,1767293440237,-511.34359108,0.00014592,2]
[400293395,1767293440246,-511.34359108,0.00014592,2]
[400293396,1767293440256,-511.34359108,0.00014592,2]
[400293397,1767293440265,-511.34359108,0.00014592,2]
[400293398,1767293440276,-511.34359108,0.00014592,2]
[400293399,1767293440285,-511.34359108,0.00014592,2]
[400293400,1767293440295,-511.34359108,0.00014592,2]
[400293402,1767293440305,-511.34359108,0.00014592,2]
[400293404,1767293440314,-511.34359108,0.00014592,2]
[400293406,1767293440324,-511.34359108,0.00014592,2]
[400293408,1767293440333,-511.34359108,0.00014592,2]
[400293409,1767293440343,-511.34359108,0.00014592,2]
[400293410,1767293440352,-511.34359108,0.00014592,2]
[400293411,1767293440361,-511.34359108,0.00014592,2]
[400293412,1767293440373,-511.34359108,0.00014592,2]
[400293413,1767293440383,-511.34359108,0.00014592,2]
[400293414,1767293440392,-511.34359108,0.00014592,2]
[400293415,1767293440401,-511.34359108,0.00014592,2]
[400293416,1767293440411,-511.34359108,0.00014592,2]
[400293417,1767293440420,-511.34359108,0.00014592,2]
[400293418,1767293440430,-486.31153089,0.00014592,2]
[400293419,1767293440442,-25.03206019,0.00014592,2]
[400293420,1767293440452,-511.34359108,0.00014592,2]
[400293422,1767293440461,-511.34359108,0.00014592,2]
[400293423,1767293440470,-398.70123277,0.00014651,2]
[400293424,1767293440482,-4817.5945809,0.00014651,2]
[400293425,1767293440493,-4156.19990002,0.00014651,2]
[400293426,1767293440503,-3488.00000003,0.00014651,2]
[400293427,1767293440515,-628.33816839,0.00014651,2]
[400293428,1767293440526,-737.66340702,0.00014651,2]
[400293429,1767293440537,-571.5346847,0.00014651,2]
[400293437,1767293443553,-394.90680366,0.00014651,2]
[400293438,1767293443565,-377712.54671771,0.00014651,2]
[400293439,1767293443577,-269066.24177043,0.00014651,2]
[400293440,1767293444340,-72203.0,0.00014651,2]
[400293483,1767293462075,500.0,0.00043117,120]
[400293485,1767293663348,2502.0,0.00011245,2]
[400293486,1767293762565,500.0,0.00043117,120]
[400293489,1767294558137,-162.27,0.00013482,2]
[400293490,1767294558161,-250.0,0.00013523,2]
[400293491,1767294558181,-150.0,0.00013564,2]
[400293492,1767294558201,-199.64592776,0.0001371,2]
[400293493,1767294558222,-135.60404497,0.0001381,2]
[400293494,1767294581564,999.0,0.00013753,3]
[400293501,1767294631924,-1200.0,0.0001381,2]
[400293502,1767294631934,-300.0,0.0001381,2]
[400293503,1767294631944,-300.0,0.0001381,2]
[400293504,1767294631955,-195.0,0.0001381,2]
[400293505,1767294631964,-164.24356273,0.00013811,2]
[400293506,1767294631974,-45.17674719,0.00013811,2]
[400293507,1767294631986,-271.00000022,0.00013811,2]
[400293508,1767294631998,-733.14325259,0.00013811,2]
[400293509,1767294632009,-300.0,0.00013818,2]
[400293510,1767294632018,-300.0,0.00013818,2]
[400293511,1767294632027,-300.0,0.00013818,2]
[400293512,1767294632038,-425.86522245,0.00013818,2]
[400293513,1767294632047,-300.0,0.00013848,2]
[400293514,1767294632056,-3714.92290892,0.00013849,2]
[400293515,1767294632068,-6674.76709108,0.00013849,2]
[400293516,1767294632078,-1000.0,0.00013919,2]
[400293518,1767294632087,-649.55,0.00014102,2]
[400293520,1767294632096,-166.81,0.0001418,2]
[400293522,1767294632106,-150.0,0.00014352,2]
[400293524,1767294632116,-500.0,0.00014353,2]
[400293526,1767294632129,-500.0,0.00014353,2]
[400293528,1767294632139,-500.0,0.00014353,2]
[400293530,1767294632148,-500.0,0.00014353,2]
[400293532,1767294632157,-500.0,0.00014353,2]
[400293534,1767294632170,-259.70850485,0.00014353,2]
[400293536,1767294632180,-500.0,0.00014353,2]
[400293538,1767294632190,-500.0,0.00014353,2]
[400293540,1767294632200,-500.0,0.00014353,2]
[400293542,1767294632209,-500.0,0.00014353,2]
[400293544,1767294632218,-500.0,0.00014353,2]
[400293546,1767294632227,-500.0,0.00014353,2]
[400293548,1767294632238,-500.0,0.00014353,2]
[400293550,1767294632247,-500.0,0.00014353,2]
[400293552,1767294632256,-500.0,0.00014353,2]
[400293554,1767294632265,-500.0,0.00014353,2]
[400293556,1767294632274,-500.0,0.00014353,2]
[400293558,1767294632284,-500.0,0.00014353,2]
[400293560,1767294632293,-500.0,0.00014353,2]
[400293562,1767294632303,-500.0,0.00014353,2]
[400293564,1767294632313,-500.0,0.00014353,2]
[400293566,1767294632323,-500.0,0.00014353,2]
[400293568,1767294632332,-500.0,0.00014353,2]
[400293570,1767294632341,-500.0,0.00014353,2]
[400293572,1767294632351,-305.8761192,0.00014353,2]
[400293574,1767294632361,-500.0,0.00014353,2]
[400293576,1767294632371,-500.0,0.00014353,2]
[400293578,1767294632380,-500.0,0.00014353,2]
[400293580,1767294632390,-500.0,0.00014353,2]
[400293582,1767294632400,-500.0,0.00014353,2]
[400293584,1767294632409,-500.0,0.00014353,2]
[400293586,1767294632419,-500.0,0.00014353,2]
[400293588,1767294632429,-500.0,0.00014353,2]
[400293590,1767294632440,-500.0,0.00014353,2]
[400293592,1767294632449,-500.0,0.00014353,2]
[400293594,1767294632459,-500.0,0.00014353,2]
[400293596,1767294632469,-500.0,0.00014353,2]
[400293598,1767294632479,-500.0,0.00014353,2]
[400293600,1767294632489,-500.0,0.00014353,2]
[400293602,1767294632499,-500.0,0.00014353,2]
[400293604,1767294632509,-500.0,0.00014353,2]
[400293606,1767294632519,-500.0,0.00014353,2]
[400293608,1767294632534,-500.0,0.00014353,2]
[400293610,1767294632544,-500.0,0.00014353,2]
[400293613,1767294632554,-500.0,0.00014353,2]
[400293615,1767294632563,-500.0,0.00014353,2]
[400293617,1767294632573,-500.0,0.00014353,2]
[400293619,1767294632583,-500.0,0.00014353,2]
[400293621,1767294632592,-500.0,0.00014353,2]
[400293623,1767294632602,-500.0,0.00014353,2]